fUSD/lending_fUSD_20250930
["ID","MTS","AMOUNT","RATE_DAILY","PERIOD"]
[388509579,1759223459139,-884.2,0.00019768,2]
[388509580,1759223459149,-1578.65,0.00019768,2]
[388509581,1759223459159,-3074.32,0.00019768,2]
[388509582,1759223459170,-5455.24,0.00019768,2]
[388509583,1759223459180,-500.0,0.00019768,2]
[388509584,1759223459190,-5309.56,0.00019768,2]
[388509585,1759223459200,-500.0,0.00019768,2]
[388509586,1759223459210,-500.0,0.00019768,2]
[388509587,1759223459219,-2208.9,0.00019768,2]
[388509588,1759223459229,-3660.63,0.00019768,2]
[388509589,1759223459239,-615.55,0.00019768,2]
[388509590,1759223459248,-500.0,0.00019768,2]
[388509591,1759223459257,-500.0,0.00019768,2]
[388509592,1759223459267,-845.79,0.00019768,2]
[388509593,1759223459278,-3011.73,0.00019768,2]
[388509594,1759223459287,-2462.99,0.00019768,2]
[388509595,1759223459297,-500.0,0.00019768,2]
[388509596,1759223459306,-500.0,0.00019768,2]
[388509597,1759223459316,-13538.13,0.00019768,2]
[388509598,1759223459326,-500.0,0.00019768,2]
[388509599,1759223459336,-4689.94,0.00019768,2]
[388509600,1759223459346,-500.0,0.00019768,2]
[388509601,1759223459355,-1691.66,0.00019768,2]
[388509602,1759223459365,-13899.61,0.00019768,2]
[388509603,1759223459374,-2777.0,0.00019768,2]
[388509604,1759223459383,-6317.76,0.00019768,2]
[388509605,1759223459393,-500.0,0.00019768,2]
[388509606,1759223459402,-6414.17,0.00019768,2]
[388509607,1759223459411,-687.68,0.00019768,2]
[388509608,1759223459420,-625.27,0.00019768,2]
[388509609,1759223459429,-500.0,0.00019768,2]
[388509610,1759223459438,-4941.58,0.00019768,2]
[388509611,1759223459448,-500.0,0.00019768,2]
[388509612,1759223459457,-3151.68,0.00019768,2]
[388509613,1759223459467,-1325.53,0.00019768,2]
[388509614,1759223459476,-500.0,0.00019768,2]
[388509615,1759223459485,-500.0,0.00019768,2]
[388509616,1759223459494,-500.0,0.00019768,2]
[388509617,1759223459504,-735.23,0.00019768,2]
[388509618,1759223459513,-1230.3,0.00019768,2]
[388509619,1759223459522,-3100.94,0.00019768,2]
[388509620,1759223459531,-500.0,0.00019768,2]
[388509621,1759223459540,-1466.89,0.00019768,2]
[388509622,1759223459549,-18474.68,0.00019768,2]
[388509623,1759223459559,-5190.58,0.00019768,2]
[388509624,1759223459568,-2570.11,0.00019768,2]
[388509625,1759223459578,-500.0,0.00019768,2]
[388509626,1759223459587,-500.0,0.00019768,2]
[388509627,1759223459597,-723.48,0.00019768,2]
[388509628,1759223459606,-11728.64,0.00019768,2]
[388509629,1759223459617,-500.0,0.00019768,2]
[388509630,1759223459629,-500.0,0.00019768,2]
[388509631,1759223459639,-5293.38,0.00019768,2]
[388509632,1759223459648,-6929.84,0.00019768,2]
[388509633,1759223459658,-1684.05,0.00019768,2]
[388509634,1759223459669,-900.84,0.00019768,2]
[388509635,1759223459678,-351.38652156,0.00019768,2]
[388509636,1759223459687,-500.0,0.00019768,2]
[388509637,1759223459700,-500.0,0.00019768,2]
[388509638,1759223459709,-500.0,0.00019768,2]
[388509639,1759223459719,-6410.87,0.00019768,2]
[388509640,1759223459729,-7923.2,0.00019768,2]
[388509641,1759223459739,-500.0,0.00019768,2]
[388509642,1759223459748,-500.0,0.00019768,2]
[388509643,1759223459859,-4836.84,0.00019768,2]
[388509644,1759223459868,-500.0,0.00019768,2]
[388509645,1759223459877,-998.35,0.00019768,2]
[388509646,1759223459886,-636.5,0.00019768,2]
[388509647,1759223459895,-643.10052339,0.00019768,2]
[388509648,1759223459905,-500.0,0.00019768,2]
[388509649,1759223459914,-500.0,0.00019768,2]
[388509650,1759223459923,-500.0,0.00019768,2]
[388509651,1759223459932,-550.76,0.00019768,2]
[388509652,1759223459941,-500.0,0.00019768,2]
[388509653,1759223459950,-1196.46,0.00019768,2]
[388509654,1759223459959,-500.0,0.00019768,2]
[388509655,1759223459968,-3672.05,0.00019768,2]
[388509656,1759223459977,-3367.41,0.00019768,2]
[388509657,1759223459987,-500.0,0.00019768,2]
[388509658,1759223459996,-2829.66,0.00019768,2]
[388509659,1759223460005,-500.0,0.00019768,2]
[388509660,1759223460015,-500.0,0.00019768,2]
[388509661,1759223460024,-3571.56,0.00019768,2]
[388509662,1759223460034,-679.07,0.00019768,2]
[388509663,1759223460043,-8338.07,0.00019768,2]
[388509664,1759223460053,-1520.94,0.00019768,2]
[388509665,1759223460063,-500.0,0.00019768,2]
[388509666,1759223460072,-768.36,0.00019768,2]
[388509667,1759223460082,-500.0,0.00019768,2]
[388509668,1759223460092,-3800.55,0.00019768,2]
[388509669,1759223460101,-846.24,0.00019768,2]
[388509670,1759223460110,-500.0,0.00019768,2]
[388509671,1759223460119,-5237.52,0.00019768,2]
[388509672,1759223460129,-4058.59,0.00019768,2]
[388509673,1759223460138,-500.0,0.00019768,2]
[388509674,1759223460147,-500.0,0.00019768,2]
[388509675,1759223460156,-548.85,0.00019768,2]
[388509676,1759223460165,-1490.16,0.00019768,2]
[388509677,1759223460174,-552.45,0.00019768,2]
[388509678,1759223460184,-8478.91,0.00019768,2]
[388509679,1759223460194,-500.0,0.00019768,2]
[388509680,1759223460204,-1674.16,0.00019768,2]
[388509681,1759223460213,-2449.50632587,0.00019768,2]
[388509682,1759223461096,-219.76367413,0.00019768,2]
[388509683,1759223461106,-156.2205399,0.00019768,2]
[388509684,1759223461140,-532.878419,0.00019766,2]
[388509685,1759223461149,-3249.002581,0.00019766,2]
[388509686,1759223461161,-899.4,0.00019766,2]
[388509687,1759223461722,-438.4386,0.00019492,2]
[388509688,1759223461747,-88.302973,0.00019492,2]
[388509689,1759223461757,-408.514422,0.00019492,2]
[388509690,1759223461768,-1080.30190221,0.00019495,2]
[388509691,1759223461788,-257.77809779,0.00019495,2]
[388509692,1759223461800,-1197.67209611,0.00019668,2]
[388509693,1759223461812,-614.90479288,0.00019668,2]
[388509694,1759223461822,-4685.37700912,0.00019766,2]
[388509695,1759223463133,-548.23462836,0.00019492,2]
[388509696,1759223463145,-485.29999995,0.00019492,2]
[388509697,1759223463158,-570.14988775,0.00019492,2]
[388509698,1759223463168,-681.00000008,0.00019492,2]
[388509699,1759223463185,-3013.36636786,0.00019492,2]
[388509700,1759223463194,-3147.44,0.00019494,2]
[388509701,1759223463203,-4800.16,0.00019494,2]
[388509702,1759223463213,-2220.36203688,0.00019766,2]
[388509703,1759223463223,-526.741573,0.00019766,2]
[388509704,1759223463232,-408.514422,0.00019766,2]
[388509705,1759223463242,-5298.050884,0.00019766,2]
[388509706,1759223463252,-3522.6094601,0.00019768,2]
[388509707,1759223463264,-2552.02,0.00019768,2]
[388509708,1759223463273,-500.0,0.00019768,2]
[388509709,1759223463283,-500.0,0.00019768,2]
[388509710,1759223463293,-1444.32,0.00019768,2]
[388509711,1759223463303,-10310.09,0.00019768,2]
[388509712,1759223463312,-7830.23,0.00019768,2]
[388509713,1759223463322,-4102.1,0.00019768,2]
[388509714,1759223463332,-1265.74,0.00019768,2]
[388509715,1759223463342,-13357.48,0.00019768,2]
[388509716,1759223463351,-500.0,0.00019768,2]
[388509717,1759223463361,-500.0,0.00019768,2]
[388509718,1759223463371,-635.52,0.00019768,2]
[388509719,1759223463381,-500.0,0.00019768,2]
[388509720,1759223463390,-500.0,0.00019768,2]
[388509721,1759223463400,-24356.58,0.00019768,2]
[388509722,1759223463409,-1872.18,0.00019768,2]
[388509723,1759223463418,-859.84,0.00019768,2]
[388509724,1759223463428,-500.0,0.00019768,2]
[388509725,1759223463437,-5338.2,0.00019768,2]
[388509726,1759223463447,-500.0,0.00019768,2]
[388509727,1759223463456,-1061.31,0.00019768,2]
[388509728,1759223463465,-151.0,0.00019768,2]
[388509729,1759223463475,-741.67,0.00019768,2]
[388509730,1759223463484,-2858.54,0.00019768,2]
[388509731,1759223463495,-3303.87,0.00019768,2]
[388509732,1759223463505,-151.0,0.00019768,2]
[388509733,1759223463514,-205.16950593,0.00019768,2]
[388509734,1759223463524,-240.48928846,0.00019768,2]
[388509735,1759223463534,-15313.29,0.00019768,2]
[388509736,1759223463544,-4327.4,0.00019768,2]
[388509737,1759223463554,-500.0,0.00019768,2]
[388509738,1759223463565,-500.0,0.00019768,2]
[388509739,1759223463575,-3405.92,0.00019768,2]
[388509740,1759223463585,-4287.39,0.00019768,2]
[388509741,1759223463595,-1437.51,0.00019768,2]
[388509742,1759223463604,-500.0,0.00019768,2]
[388509743,1759223463614,-500.0,0.00019768,2]
[388509744,1759223463628,-1274.03,0.00019768,2]
[388509745,1759223463637,-156.492852,0.00019768,2]
[388509746,1759223463647,-834.85,0.00019768,2]
[388509747,1759223463656,-9581.1,0.00019768,2]
[388509748,1759223463667,-833.2,0.00019768,2]
[388509749,1759223463676,-500.0,0.00019768,2]
[388509750,1759223463686,-151.0,0.00019768,2]
[388509751,1759223463697,-151.0,0.00019768,2]
[388509752,1759223463707,-724.93,0.00019768,2]
[388509753,1759223463716,-4617.18,0.00019768,2]
[388509754,1759223463726,-500.0,0.00019768,2]
[388509756,1759223463735,-500.0,0.00019768,2]
[388509757,1759223463744,-151.0,0.00019768,2]
[388509758,1759223463754,-151.0,0.00019768,2]
[388509759,1759223463764,-166.837285,0.00019768,2]
[388509760,1759223463773,-152.881411,0.00019768,2]
[388509761,1759223463783,-7453.25,0.00019768,2]
[388509762,1759223463792,-500.0,0.00019768,2]
[388509763,1759223463802,-151.0,0.00019768,2]
[388509764,1759223463811,-1761.32,0.00019768,2]
[388509765,1759223463821,-3147.44,0.00019768,2]
[388509766,1759223463831,-4800.16,0.00019768,2]
[388509767,1759223463841,-796.71,0.00019769,2]
[388509768,1759223463850,-625.97,0.00019769,2]
[388509769,1759223463860,-500.0,0.00019769,2]
[388509770,1759223463870,-500.0,0.00019769,2]
[388509771,1759223463880,-500.0,0.00019769,2]
[388509772,1759223463890,-500.0,0.00019769,2]
[388509773,1759223463899,-2922.51,0.00019769,2]
[388509774,1759223463909,-3328.26,0.00019769,2]
[388509775,1759223463919,-1499.04,0.00019769,2]
[388509776,1759223463930,-3549.39,0.00019769,2]
[388509777,1759223463939,-4594.91,0.00019769,2]
[388509778,1759223463949,-933.88,0.00019769,2]
[388509779,1759223463959,-2169.96,0.00019769,2]
[388509780,1759223463969,-2073.0,0.00019769,2]
[388509781,1759223463978,-3687.54,0.00019769,2]
[388509782,1759223463988,-3955.72,0.00019769,2]
[388509783,1759223463997,-4361.68,0.00019769,2]
[388509784,1759223464007,-3475.05,0.00019769,2]
[388509785,1759223464017,-3238.0,0.00019769,2]
[388509786,1759223464027,-2506.21,0.00019769,2]
[388509787,1759223464036,-585.24,0.00019769,2]
[388509788,1759223464046,-1043.14,0.00019769,2]
[388509789,1759223464055,-2768.72,0.00019769,2]
[388509790,1759223464064,-1747.81,0.00019769,2]
[388509791,1759223464074,-3379.93,0.00019769,2]
[388509792,1759223464084,-904.27,0.00019769,2]
[388509793,1759223464094,-3766.19,0.00019769,2]
[388509794,1759223464104,-605.09,0.00019769,2]
[388509795,1759223464114,-5411.23,0.00019769,2]
[388509796,1759223464124,-3600.41,0.00019769,2]
[388509797,1759223464134,-4547.8,0.00019769,2]
[388509798,1759223464143,-3970.12,0.00019769,2]
[388509799,1759223464152,-2099.85,0.00019769,2]
[388509800,1759223464162,-3512.92,0.00019769,2]
[388509801,1759223464173,-1905.16,0.00019769,2]
[388509802,1759223464184,-3974.94,0.00019769,2]
[388509803,1759223464195,-851.67,0.00019769,2]
[388509804,1759223464204,-3040.1,0.00019769,2]
[388509805,1759223464214,-1889.53,0.00019769,2]
[388509806,1759223464229,-1871.65,0.00019769,2]
[388509807,1759223464240,-528.90514386,0.00019769,2]
[388509808,1759223464252,-3564.9,0.00019769,2]
[388509809,1759223464263,-4473.24,0.00019769,2]
[388509810,1759223464274,-500.0,0.00019769,2]
[388509811,1759223464286,-1961.85,0.00019769,2]
[388509812,1759223464296,-2187.06,0.00019769,2]
[388509813,1759223464305,-4129.88,0.00019769,2]
[388509814,1759223464315,-500.0,0.00019769,2]
[388509815,1759223464324,-3309.32,0.00019769,2]
[388509816,1759223464334,-4577.83,0.00019769,2]
[388509817,1759223464344,-3145.15,0.00019769,2]
[388509818,1759223464354,-2117.21,0.00019769,2]
[388509819,1759223464365,-4008.89,0.00019769,2]
[388509820,1759223464375,-4377.48,0.00019769,2]
[388509821,1759223464399,-3212.95,0.00019769,2]
[388509822,1759223464414,-2342.01,0.00019769,2]
[388509823,1759223464424,-4446.25,0.00019769,2]
[388509824,1759223464434,-5214.62,0.00019769,2]
[388509825,1759223464444,-2549.76,0.00019769,2]
[388509826,1759223464454,-2145.35,0.00019769,2]
[388509827,1759223464464,-2908.34,0.00019769,2]
[388509828,1759223464476,-658.71,0.00019769,2]
[388509829,1759223464487,-500.0,0.00019769,2]
[388509830,1759223464497,-5233.54,0.00019769,2]
[388509831,1759223464507,-1542.82,0.00019769,2]
[388509832,1759223464517,-1130.66,0.00019769,2]
[388509833,1759223464527,-5032.73,0.00019769,2]
[388509834,1759223464538,-3189.41,0.00019769,2]
[388509835,1759223464548,-2789.22,0.00019769,2]
[388509836,1759223464558,-5173.58,0.00019769,2]
[388509837,1759223464568,-1788.55,0.00019769,2]
[388509838,1759223464578,-967.53,0.00019769,2]
[388509839,1759223464588,-192.91415,0.00019769,2]
[388509840,1759223464598,-1114.42,0.00019769,2]
[388509841,1759223464610,-936.99,0.00019769,2]
[388509842,1759223464622,-178.883566,0.00019769,2]
[388509843,1759223464634,-500.0,0.00019769,2]
[388509844,1759223464644,-3453.84,0.00019769,2]
[388509845,1759223464655,-159.850703,0.00019769,2]
[388509846,1759223464666,-1741.11,0.00019769,2]
[388509847,1759223464676,-155.112931,0.00019769,2]
[388509848,1759223464686,-1334.22,0.00019769,2]
[388509849,1759223464696,-151.0,0.00019769,2]
[388509850,1759223464707,-4302.92,0.00019769,2]
[388509851,1759223464718,-4736.48,0.00019769,2]
[388509852,1759223464729,-159.858555,0.00019769,2]
[388509853,1759223464740,-500.0,0.00019769,2]
[388509854,1759223464751,-985.35,0.00019769,2]
[388509855,1759223464760,-822.66,0.00019769,2]
[388509856,1759223464771,-2578.17,0.00019769,2]
[388509857,1759223464788,-1701.75,0.00019769,2]
[388509858,1759223464799,-154.810152,0.00019769,2]
[388509859,1759223464810,-500.0,0.00019769,2]
[388509860,1759223464821,-3564.66,0.00019769,2]
[388509861,1759223464832,-151.0,0.00019769,2]
[388509862,1759223464843,-500.0,0.00019769,2]
[388509863,1759223464854,-3862.4,0.00019769,2]
[388509864,1759223464867,-794.52,0.00019769,2]
[388509865,1759223464878,-247.315765,0.00019769,2]
[388509866,1759223464888,-2665.84,0.00019769,2]
[388509867,1759223464899,-500.0,0.00019769,2]
[388509868,1759223464910,-160.896504,0.00019769,2]
[388509869,1759223464921,-1696.33,0.00019769,2]
[388509870,1759223464931,-856.27,0.00019769,2]
[388509871,1759223464942,-3025.93,0.00019769,2]
[388509872,1759223464953,-628.76,0.00019769,2]
[388509873,1759223464964,-151.0,0.00019769,2]
[388509874,1759223464975,-4652.12,0.00019769,2]
[388509875,1759223464987,-155.932108,0.00019769,2]
[388509876,1759223464998,-500.0,0.00019769,2]
[388509877,1759223465011,-304.572107,0.00019769,2]
[388509878,1759223465022,-304.572107,0.00019769,2]
[388509879,1759223465033,-3270.99,0.00019769,2]
[388509880,1759223465044,-151.0,0.00019769,2]
[388509881,1759223465055,-304.572107,0.00019769,2]
[388509882,1759223465066,-304.572107,0.00019769,2]
[388509883,1759223465077,-1060.56,0.00019769,2]
[388509884,1759223465087,-243.377356,0.00019769,2]
[388509885,1759223465098,-155.25791,0.00019769,2]
[388509886,1759223465109,-2204.9,0.00019769,2]
[388509887,1759223465120,-156.785989,0.00019769,2]
[388509888,1759223465131,-3104.56,0.00019769,2]
[388509889,1759223465143,-151.0,0.00019769,2]
[388509890,1759223465153,-159.648756,0.00019769,2]
[388509891,1759223465163,-500.0,0.00019769,2]
[388509892,1759223465181,-171.60053813,0.00019769,2]
[388509893,1759223465209,-500.0,0.00019492,2]
[388509894,1759223465221,-643.09946187,0.00019769,2]
[388509895,1759223465232,-162.537105,0.00019769,2]
[388509896,1759223465243,-162.537105,0.00019769,2]
[388509897,1759223465255,-162.537105,0.00019769,2]
[388509898,1759223465266,-3563.59,0.00019769,2]
[388509899,1759223465277,-3208.87,0.00019769,2]
[388509900,1759223465288,-162.537105,0.00019769,2]
[388509901,1759223465300,-3325.79,0.00019769,2]
[388509902,1759223465311,-3350.04888224,0.00019769,2]
[388509903,1759223465378,-500.0,0.00019494,2]
[388509904,1759223465389,-3.37824664,0.00019769,2]
[388509905,1759223465402,-614.83287112,0.00019769,2]
[388509906,1759223465413,-2398.14,0.00019769,2]
[388509907,1759223465424,-500.0,0.00019769,2]
[388509908,1759223465435,-844.93974705,0.00019769,2]
[388509909,1759223467153,-4084.16,0.00019493,2]
[388509910,1759223467165,-500.0,0.00019494,2]
[388509911,1759223467176,-500.0,0.00019766,2]
[388509912,1759223467187,-4084.16,0.00019767,2]
[388509913,1759223467199,-500.0,0.00019768,2]
[388509914,1759223467210,-234.68732918,0.00019768,2]
[388509915,1759223467224,-265.31267082,0.00019768,2]
[388509916,1759223467236,-50.22025295,0.00019769,2]
[388509917,1759223467247,-177.716906,0.00019769,2]
[388509918,1759223467258,-116.4215185,0.00019769,2]
[388509919,1759223467362,-254.322159,0.00019768,2]
[388509920,1759223467373,-34.5784815,0.00019769,2]
[388509921,1759223467384,-151.0,0.00019769,2]
[388509922,1759223467395,-1030.38,0.00019769,2]
[388509923,1759223467405,-3512.44,0.00019769,2]
[388509924,1759223467416,-151.0,0.00019769,2]
[388509925,1759223467427,-151.0,0.00019769,2]
[388509926,1759223467437,-151.0,0.00019769,2]
[388509927,1759223467448,-178.259778,0.00019769,2]
[388509928,1759223467459,-1481.73,0.00019769,2]
[388509929,1759223467470,-151.0,0.00019769,2]
[388509930,1759223467480,-5286.74,0.00019769,2]
[388509931,1759223467500,-160.454201,0.00019769,2]
[388509932,1759223467511,-151.0,0.00019769,2]
[388509933,1759223467522,-151.0,0.00019769,2]
[388509934,1759223467532,-151.0,0.00019769,2]
[388509935,1759223467543,-3923.69,0.00019769,2]
[388509936,1759223467553,-151.0,0.00019769,2]
[388509937,1759223467564,-500.0,0.00019769,2]
[388509938,1759223467575,-151.0,0.00019769,2]
[388509939,1759223467585,-5027.48,0.00019769,2]
[388509940,1759223467595,-4673.81,0.00019769,2]
[388509941,1759223467606,-5522.15,0.00019769,2]
[388509942,1759223467618,-151.0,0.00019769,2]
[388509943,1759223467632,-5241.82,0.00019769,2]
[388509944,1759223467642,-500.0,0.00019769,2]
[388509945,1759223467652,-2049.27,0.00019769,2]
[388509946,1759223467665,-3579.55,0.00019769,2]
[388509947,1759223467676,-1338.08,0.00019769,2]
[388509948,1759223467686,-1243.47,0.0001977,2]
[388509949,1759223467699,-500.0,0.0001977,2]
[388509950,1759223467710,-500.0,0.0001977,2]
[388509951,1759223467721,-1529.14,0.0001977,2]
[388509952,1759223467731,-1238.87,0.0001977,2]
[388509953,1759223467742,-295.53150849,0.0001977,2]
[388509954,1759223467752,-1763.38,0.0001977,2]
[388509955,1759223467763,-877.55,0.0001977,2]
[388509956,1759223467774,-220.25392618,0.0001977,2]
[388509957,1759223467784,-500.0,0.0001977,2]
[388509958,1759223467795,-500.0,0.0001977,2]
[388509959,1759223467807,-890.07,0.0001977,2]
[388509960,1759223467818,-852.98,0.0001977,2]
[388509961,1759223467829,-500.0,0.0001977,2]
[388509962,1759223467842,-576.21,0.0001977,2]
[388509963,1759223467853,-500.0,0.0001977,2]
[388509964,1759223467864,-606.61,0.0001977,2]
[388509965,1759223467875,-1213.65,0.0001977,2]
[388509966,1759223467886,-1707.17,0.0001977,2]
[388509967,1759223467896,-884.39,0.0001977,2]
[388509968,1759223467907,-500.0,0.0001977,2]
[388509969,1759223467922,-500.0,0.0001977,2]
[388509970,1759223467932,-2427.17,0.0001977,2]
[388509971,1759223467943,-240.15814774,0.0001977,2]
[388509972,1759223467953,-500.0,0.0001977,2]
[388509973,1759223467964,-569.15,0.0001977,2]
[388509974,1759223467976,-500.0,0.0001977,2]
[388509975,1759223467986,-1884.43,0.0001977,2]
[388509976,1759223467997,-500.0,0.0001977,2]
[388509977,1759223468007,-191.56668796,0.0001977,2]
[388509978,1759223468018,-655.91,0.0001977,2]
[388509979,1759223468028,-653.67,0.0001977,2]
[388509980,1759223468039,-500.0,0.0001977,2]
[388509981,1759223468050,-500.0,0.0001977,2]
[388509982,1759223468060,-1135.11,0.0001977,2]
[388509983,1759223468073,-500.0,0.0001977,2]
[388509984,1759223468083,-1184.8,0.0001977,2]
[388509985,1759223468094,-773.68,0.0001977,2]
[388509986,1759223468106,-771.21,0.0001977,2]
[388509987,1759223468117,-500.0,0.0001977,2]
[388509988,1759223468129,-860.56,0.0001977,2]
[388509989,1759223468142,-500.0,0.0001977,2]
[388509990,1759223468153,-675.7,0.0001977,2]
[388509991,1759223468165,-500.0,0.0001977,2]
[388509992,1759223468176,-2270.38,0.0001977,2]
[388509993,1759223468187,-778.54,0.0001977,2]
[388509994,1759223468198,-2631.68,0.0001977,2]
[388509995,1759223468208,-1678.01,0.0001977,2]
[388509996,1759223468220,-639.27,0.0001977,2]
[388509997,1759223468231,-3099.32,0.0001977,2]
[388509998,1759223468242,-1094.77,0.0001977,2]
[388509999,1759223468252,-500.0,0.0001977,2]
[388510000,1759223468262,-500.0,0.0001977,2]
[388510001,1759223468273,-500.0,0.0001977,2]
[388510002,1759223468284,-2230.2,0.0001977,2]
[388510003,1759223468294,-815.55,0.0001977,2]
[388510004,1759223468305,-500.0,0.0001977,2]
[388510005,1759223468316,-500.0,0.0001977,2]
[388510006,1759223468327,-500.0,0.0001977,2]
[388510007,1759223468338,-500.0,0.0001977,2]
[388510008,1759223468349,-502.6,0.0001977,2]
[388510009,1759223468360,-593.24,0.0001977,2]
[388510010,1759223468371,-3389.38,0.0001977,2]
[388510011,1759223468381,-500.0,0.0001977,2]
[388510012,1759223468392,-500.0,0.0001977,2]
[388510013,1759223468402,-500.0,0.0001977,2]
[388510014,1759223468413,-1529.62,0.0001977,2]
[388510015,1759223468423,-862.81,0.0001977,2]
[388510016,1759223468435,-500.0,0.0001977,2]
[388510017,1759223468445,-500.0,0.0001977,2]
[388510018,1759223468456,-3438.3,0.0001977,2]
[388510019,1759223468466,-500.0,0.0001977,2]
[388510020,1759223468478,-519.97,0.0001977,2]
[388510021,1759223468488,-2574.43,0.0001977,2]
[388510022,1759223468499,-1397.33,0.0001977,2]
[388510023,1759223468510,-2127.91,0.0001977,2]
[388510024,1759223468520,-326.38718255,0.0001977,2]
[388510025,1759223468531,-500.0,0.0001977,2]
[388510026,1759223468542,-610.66,0.0001977,2]
[388510027,1759223468553,-500.0,0.0001977,2]
[388510028,1759223468565,-500.0,0.0001977,2]
[388510029,1759223468576,-500.0,0.0001977,2]
[388510030,1759223468587,-500.0,0.0001977,2]
[388510031,1759223468597,-500.0,0.0001977,2]
[388510032,1759223468608,-599.58,0.0001977,2]
[388510033,1759223468619,-500.0,0.0001977,2]
[388510034,1759223468634,-500.0,0.0001977,2]
[388510035,1759223468644,-165.80662403,0.0001977,2]
[388510036,1759223468654,-1054.65,0.0001977,2]
[388510037,1759223468664,-500.0,0.0001977,2]
[388510038,1759223468675,-500.0,0.0001977,2]
[388510039,1759223468685,-500.0,0.0001977,2]
[388510040,1759223468695,-534.18,0.0001977,2]
[388510041,1759223468706,-1181.69,0.0001977,2]
[388510042,1759223468716,-500.0,0.0001977,2]
[388510043,1759223468728,-235.77,0.0001977,2]
[388510044,1759223468738,-1049.98,0.0001977,2]
[388510045,1759223468748,-500.0,0.0001977,2]
[388510046,1759223468758,-773.06,0.0001977,2]
[388510047,1759223468769,-500.0,0.0001977,2]
[388510048,1759223468779,-1345.63,0.0001977,2]
[388510049,1759223468789,-563.15,0.0001977,2]
[388510050,1759223468799,-2119.61,0.0001977,2]
[388510051,1759223468809,-805.61,0.0001977,2]
[388510052,1759223468819,-500.0,0.0001977,2]
[388510053,1759223468830,-2046.27,0.0001977,2]
[388510054,1759223468842,-706.22,0.0001977,2]
[388510055,1759223468854,-500.0,0.0001977,2]
[388510056,1759223468866,-500.0,0.0001977,2]
[388510057,1759223468881,-500.0,0.0001977,2]
[388510058,1759223468894,-500.0,0.0001977,2]
[388510059,1759223468906,-1405.32,0.0001977,2]
[388510060,1759223468919,-2266.45,0.0001977,2]
[388510061,1759223468930,-1346.67,0.0001977,2]
[388510062,1759223468941,-758.2,0.0001977,2]
[388510063,1759223468952,-591.04,0.0001977,2]
[388510064,1759223468963,-1671.59,0.0001977,2]
[388510065,1759223468980,-1579.6,0.0001977,2]
[388510066,1759223468993,-1822.92,0.0001977,2]
[388510067,1759223469004,-750.03,0.0001977,2]
[388510068,1759223469016,-610.27,0.0001977,2]
[388510069,1759223469027,-1344.25,0.0001977,2]
[388510070,1759223469039,-500.0,0.0001977,2]
[388510071,1759223469051,-500.0,0.0001977,2]
[388510072,1759223469061,-500.0,0.0001977,2]
[388510073,1759223469071,-500.0,0.0001977,2]
[388510074,1759223469082,-378.30705263,0.0001977,2]
[388510075,1759223469258,-1263.69,0.0001977,2]
[388510076,1759223469268,-2691.82,0.0001977,2]
[388510077,1759223469280,-500.0,0.0001977,2]
[388510078,1759223469290,-500.0,0.0001977,2]
[388510079,1759223469299,-17.79912509,0.0001977,2]